[Event "*** Titled Tuesday Blitz"]
[Site "Chess.com"]
[Date "2020.05.26"]
[Round "1"]
[White "Konovalova_Vera"]
[Black "Cubitas"]
[Result "0-1"]
[WhiteElo "2150"]
[BlackElo "2519"]
[TimeControl "180+1"]
[EndTime "10:05:23 PDT"]
[Termination "Cubitas won by resignation"]

1. d4 {[%clk 0:02:59.9]} 1... Nf6 {[%clk 0:02:59.4]} 2. Bg5 {[%clk 0:02:59.2]}
2... g6 {[%clk 0:02:58.7]} 3. Bxf6 {[%clk 0:02:58.1]} 3... exf6 {[%clk
0:02:59.6]} 4. e3 {[%clk 0:02:57.8]} 4... c5 {[%clk 0:02:59.6]} 5. c3 {[%clk
0:02:55.5]} 5... f5 {[%clk 0:02:58]} 6. Nf3 {[%clk 0:02:54.4]} 6... Qb6 {[%clk
0:02:44.3]} 7. Qb3 {[%clk 0:02:52]} 7... Nc6 {[%clk 0:02:38.3]} 8. Nbd2 {[%clk
0:02:43.4]} 8... d5 {[%clk 0:02:33.9]} 9. Rb1 {[%clk 0:02:31.5]} 9... Be6 {[%clk
0:02:31.9]} 10. Qxb6 {[%clk 0:02:24.5]} 10... axb6 {[%clk 0:02:31.6]} 11. a3
{[%clk 0:02:24.4]} 11... Be7 {[%clk 0:02:28.8]} 12. Bb5 {[%clk 0:02:23.2]} 12...
O-O {[%clk 0:02:22.7]} 13. O-O {[%clk 0:02:14.8]} 13... Rfc8 {[%clk 0:02:14.9]}
14. Rfc1 {[%clk 0:02:07.8]} 14... Na7 {[%clk 0:02:04.2]} 15. Be2 {[%clk
0:02:04.5]} 15... c4 {[%clk 0:02:04.2]} 16. b4 {[%clk 0:01:56.4]} 16... Nb5
{[%clk 0:01:59.4]} 17. Ra1 {[%clk 0:01:43.7]} 17... Nxa3 {[%clk 0:01:55.2]} 18.
Bd1 {[%clk 0:01:26.7]} 18... Nb5 {[%clk 0:01:55]} 19. Ba4 {[%clk 0:01:14.9]}
19... Nxc3 {[%clk 0:01:55]} 20. Rxc3 {[%clk 0:01:13.4]} 20... b5 {[%clk
0:01:55.4]} 21. Rcc1 {[%clk 0:01:00]} 21... Rxa4 {[%clk 0:01:50.3]} 22. Ne5
{[%clk 0:00:55.8]} 22... Bxb4 {[%clk 0:01:48]} 23. Ndf3 {[%clk 0:00:51.5]} 23...
Rca8 {[%clk 0:01:46.6]} 24. Rab1 {[%clk 0:00:46.9]} 24... Ba3 {[%clk 0:01:44.4]}
25. Rd1 {[%clk 0:00:42.2]} 25... b4 {[%clk 0:01:42.7]} 26. Ne1 {[%clk
0:00:40.7]} 26... b3 {[%clk 0:01:41.4]} 27. N5f3 {[%clk 0:00:29.4]} 27... f4
{[%clk 0:01:38.5]} 28. exf4 {[%clk 0:00:24.9]} 28... Bf5 {[%clk 0:01:38.4]} 0-1

[Event "*** Titled Tuesday Blitz"]
[Site "Chess.com"]
[Date "2020.05.26"]
[Round "1"]
[White "chegueps"]
[Black "TigrVShlyape"]
[Result "0-1"]
[WhiteElo "2414"]
[BlackElo "2845"]
[TimeControl "180+1"]
[EndTime "10:05:26 PDT"]
[Termination "TigrVShlyape won by resignation"]

1. e4 {[%clk 0:02:59.2]} 1... e5 {[%clk 0:02:58.4]} 2. Nf3 {[%clk 0:02:56.8]}
2... Nc6 {[%clk 0:02:57.6]} 3. Bb5 {[%clk 0:02:55.2]} 3... Nf6 {[%clk
0:02:56.3]} 4. d3 {[%clk 0:02:49.4]} 4... d6 {[%clk 0:02:55.4]} 5. h3 {[%clk
0:02:32.2]} 5... Bd7 {[%clk 0:02:54.2]} 6. O-O {[%clk 0:02:29.9]} 6... g6 {[%clk
0:02:54.4]} 7. c3 {[%clk 0:02:27.3]} 7... Bg7 {[%clk 0:02:51.3]} 8. Ba4 {[%clk
0:02:25]} 8... O-O {[%clk 0:02:50.4]} 9. Nbd2 {[%clk 0:02:14.6]} 9... Qe8 {[%clk
0:02:48.6]} 10. Re1 {[%clk 0:02:04.1]} 10... Nh5 {[%clk 0:02:44]} 11. Nf1 {[%clk
0:01:58.5]} 11... Kh8 {[%clk 0:02:42.3]} 12. d4 {[%clk 0:01:55.7]} 12... Nxd4
{[%clk 0:02:39.7]} 13. cxd4 {[%clk 0:01:45.3]} 13... Bxa4 {[%clk 0:02:38.6]} 14.
b3 {[%clk 0:01:46.2]} 14... Bd7 {[%clk 0:02:26.8]} 15. Bb2 {[%clk 0:01:45.1]}
15... f6 {[%clk 0:02:11.4]} 16. Rc1 {[%clk 0:01:43.9]} 16... Rc8 {[%clk
0:02:10.6]} 17. Ne3 {[%clk 0:01:28.7]} 17... Nf4 {[%clk 0:02:09]} 18. Nd5 {[%clk
0:01:25]} 18... Nxd5 {[%clk 0:02:07.7]} 19. exd5 {[%clk 0:01:25.9]} 19... e4
{[%clk 0:02:06]} 20. Nd2 {[%clk 0:01:23.6]} 20... f5 {[%clk 0:02:05.6]} 21. Qe2
{[%clk 0:01:12.7]} 21... Qf7 {[%clk 0:02:03.9]} 22. Qc4 {[%clk 0:01:02.5]} 22...
b5 {[%clk 0:02:02.6]} 23. Qb4 {[%clk 0:00:58.8]} 23... Qxd5 {[%clk 0:02:02.2]}
24. Nf1 {[%clk 0:00:55.5]} 24... f4 {[%clk 0:02:01.6]} 25. Qa5 {[%clk
0:00:46.7]} 25... c5 {[%clk 0:01:56.3]} 26. Qxa7 {[%clk 0:00:38.9]} 26... Bc6
{[%clk 0:01:54.4]} 27. Red1 {[%clk 0:00:34]} 27... e3 {[%clk 0:01:53.4]} 28.
Qxg7+ {[%clk 0:00:27.6]} 28... Kxg7 {[%clk 0:01:51.8]} 29. dxc5+ {[%clk
0:00:28.1]} 29... Kf7 {[%clk 0:01:46.7]} 30. Rxd5 {[%clk 0:00:18.3]} 30... exf2+
{[%clk 0:01:46]} 31. Kxf2 {[%clk 0:00:17.9]} 31... Bxd5 {[%clk 0:01:46.9]} 32.
cxd6 {[%clk 0:00:17.6]} 32... Rxc1 {[%clk 0:01:45.8]} 33. Bxc1 {[%clk
0:00:18.5]} 33... Ke6 {[%clk 0:01:45.3]} 34. Ba3 {[%clk 0:00:17.6]} 34... Ra8
{[%clk 0:01:44.4]} 0-1

[Event "*** Titled Tuesday Blitz"]
[Site "Chess.com"]
[Date "2020.05.26"]
[Round "1"]
[White "MaxVavulin"]
[Black "GiorgianBarbosa"]
[Result "1-0"]
[WhiteElo "2624"]
[BlackElo "2290"]
[TimeControl "180+1"]
[EndTime "10:05:26 PDT"]
[Termination "MaxVavulin won by resignation"]

1. e4 {[%clk 0:03:00.9]} 1... c5 {[%clk 0:02:58.5]} 2. Nf3 {[%clk 0:02:59.2]}
2... g6 {[%clk 0:02:59.1]} 3. d4 {[%clk 0:02:58.6]} 3... cxd4 {[%clk 0:02:57.3]}
4. Nxd4 {[%clk 0:02:59.1]} 4... Bg7 {[%clk 0:02:55.1]} 5. Nc3 {[%clk 0:02:58.7]}
5... Nc6 {[%clk 0:02:54.5]} 6. Be3 {[%clk 0:02:58.3]} 6... Nf6 {[%clk
0:02:50.1]} 7. Bc4 {[%clk 0:02:58.1]} 7... O-O {[%clk 0:02:48.7]} 8. Bb3 {[%clk
0:02:55]} 8... Re8 {[%clk 0:02:43.2]} 9. f3 {[%clk 0:02:39.4]} 9... e6 {[%clk
0:02:41]} 10. f4 {[%clk 0:02:38.3]} 10... d6 {[%clk 0:02:28.5]} 11. Qf3 {[%clk
0:02:33.9]} 11... a6 {[%clk 0:02:23.7]} 12. O-O-O {[%clk 0:02:32.2]} 12... Qc7
{[%clk 0:02:21.6]} 13. Kb1 {[%clk 0:02:23.2]} 13... Nxd4 {[%clk 0:02:17.3]} 14.
Rxd4 {[%clk 0:02:18.7]} 14... Nd7 {[%clk 0:01:20.3]} 15. Rd2 {[%clk 0:02:06.2]}
15... b5 {[%clk 0:01:18.4]} 16. Rhd1 {[%clk 0:02:05.2]} 16... Bf8 {[%clk
0:01:18.4]} 17. e5 {[%clk 0:01:39.1]} 17... d5 {[%clk 0:01:12.3]} 18. Nxd5
{[%clk 0:01:38.4]} 18... exd5 {[%clk 0:01:07.8]} 19. Qxd5 {[%clk 0:01:38.9]}
19... Nc5 {[%clk 0:00:25.5]} 20. Qxa8 {[%clk 0:01:22]} 20... Nxb3 {[%clk
0:00:15.9]} 21. axb3 {[%clk 0:01:20.8]} 1-0

[Event "*** Titled Tuesday Blitz"]
[Site "Chess.com"]
[Date "2020.05.26"]
[Round "1"]
[White "FairChess_on_YouTube"]
[Black "Misha_Bilous"]
[Result "1-0"]
[WhiteElo "3024"]
[BlackElo "2452"]
[TimeControl "180+1"]
[EndTime "10:05:30 PDT"]
[Termination "FairChess_on_YouTube won on time"]

1. e4 {[%clk 0:03:00.3]} 1... c5 {[%clk 0:02:57.7]} 2. Nf3 {[%clk 0:02:59.7]}
2... d6 {[%clk 0:02:58.2]} 3. d4 {[%clk 0:02:57.1]} 3... cxd4 {[%clk 0:02:59.1]}
4. Nxd4 {[%clk 0:02:57.5]} 4... Nf6 {[%clk 0:02:59.7]} 5. Nc3 {[%clk 0:02:57.5]}
5... a6 {[%clk 0:03:00.3]} 6. a4 {[%clk 0:02:54]} 6... e5 {[%clk 0:03:00]} 7.
Nf3 {[%clk 0:02:52.1]} 7... Be7 {[%clk 0:02:56.4]} 8. Bg5 {[%clk 0:02:50.7]}
8... O-O {[%clk 0:02:50.6]} 9. Bxf6 {[%clk 0:02:45.1]} 9... Bxf6 {[%clk
0:02:51.5]} 10. Bc4 {[%clk 0:02:44]} 10... Be6 {[%clk 0:02:50.9]} 11. Nd5 {[%clk
0:02:42.5]} 11... Nd7 {[%clk 0:02:46.6]} 12. O-O {[%clk 0:02:40.9]} 12... Rc8
{[%clk 0:02:41.2]} 13. Ba2 {[%clk 0:02:40.4]} 13... Bg5 {[%clk 0:02:21.2]} 14.
Qe2 {[%clk 0:02:21]} 14... Bh6 {[%clk 0:02:12]} 15. Rfd1 {[%clk 0:02:20.7]}
15... Nb6 {[%clk 0:02:01.3]} 16. a5 {[%clk 0:02:15.3]} 16... Nxd5 {[%clk
0:01:57.8]} 17. Bxd5 {[%clk 0:02:16.2]} 17... Qc7 {[%clk 0:01:50.4]} 18. c3
{[%clk 0:02:16.1]} 18... Rfd8 {[%clk 0:01:40.4]} 19. h3 {[%clk 0:02:15]} 19...
g6 {[%clk 0:01:27]} 20. Ra4 {[%clk 0:02:13.6]} 20... Bxd5 {[%clk 0:01:16.9]} 21.
Rxd5 {[%clk 0:02:12.8]} 21... Qc6 {[%clk 0:01:16]} 22. Rb4 {[%clk 0:02:11.8]}
22... Bf8 {[%clk 0:01:05.2]} 23. Qd1 {[%clk 0:02:10.1]} 23... Qc7 {[%clk
0:00:46]} 24. Qb3 {[%clk 0:02:08.6]} 24... Rb8 {[%clk 0:00:42.9]} 25. Rb6 {[%clk
0:02:08]} 25... Qc8 {[%clk 0:00:35.4]} 26. Nd2 {[%clk 0:02:02.7]} 26... Rd7
{[%clk 0:00:29.3]} 27. Nc4 {[%clk 0:02:02]} 27... Qd8 {[%clk 0:00:18.5]} 28. Qd1
{[%clk 0:01:59.3]} 28... Rc8 {[%clk 0:00:16.4]} 29. Nxe5 {[%clk 0:01:54.8]}
29... Re7 {[%clk 0:00:14.9]} 30. Rbxd6 {[%clk 0:01:51.8]} 30... Qe8 {[%clk
0:00:14.9]} 31. Ng4 {[%clk 0:01:50.5]} 1-0

[Event "*** Titled Tuesday Blitz"]
[Site "Chess.com"]
[Date "2020.05.26"]
[Round "1"]
[White "PauloCesarCosta_sad"]
[Black "lolo9292"]
[Result "0-1"]
[WhiteElo "2175"]
[BlackElo "2536"]
[TimeControl "180+1"]
[EndTime "10:05:32 PDT"]
[Termination "lolo9292 won by checkmate"]

1. Nf3 {[%clk 0:03:00.9]} 1... Nf6 {[%clk 0:02:48.3]} 2. c4 {[%clk 0:03:00.4]}
2... g6 {[%clk 0:02:34.2]} 3. g3 {[%clk 0:03:00.3]} 3... Bg7 {[%clk 0:02:35.1]}
4. Bg2 {[%clk 0:03:01.1]} 4... O-O {[%clk 0:02:35]} 5. O-O {[%clk 0:03:02]} 5...
d6 {[%clk 0:02:35]} 6. d4 {[%clk 0:03:02.1]} 6... Bf5 {[%clk 0:02:23.1]} 7. Nc3
{[%clk 0:02:47.4]} 7... Ne4 {[%clk 0:02:22.4]} 8. Nh4 {[%clk 0:02:15.9]} 8...
Nxc3 {[%clk 0:02:16.9]} 9. bxc3 {[%clk 0:02:16.8]} 9... Bc8 {[%clk 0:02:17]} 10.
Qd3 {[%clk 0:02:07.9]} 10... Nc6 {[%clk 0:02:15.6]} 11. Be3 {[%clk 0:01:58.7]}
11... e5 {[%clk 0:02:15.6]} 12. d5 {[%clk 0:01:47.3]} 12... Ne7 {[%clk
0:02:15.1]} 13. c5 {[%clk 0:01:47.8]} 13... Nf5 {[%clk 0:02:09.1]} 14. Nxf5
{[%clk 0:01:47.4]} 14... Bxf5 {[%clk 0:02:10]} 15. Qd2 {[%clk 0:01:40.8]} 15...
Qd7 {[%clk 0:02:02.7]} 16. cxd6 {[%clk 0:01:33.5]} 16... cxd6 {[%clk 0:02:03.6]}
17. Bh6 {[%clk 0:01:33.7]} 17... Rac8 {[%clk 0:02:02.9]} 18. Bxg7 {[%clk
0:01:14.2]} 18... Kxg7 {[%clk 0:02:03.8]} 19. e4 {[%clk 0:01:14.6]} 19... Bh3
{[%clk 0:01:59.8]} 20. Rab1 {[%clk 0:01:09.4]} 20... Bxg2 {[%clk 0:01:48.1]} 21.
Kxg2 {[%clk 0:01:10.3]} 21... Rc5 {[%clk 0:01:48.5]} 22. Rb3 {[%clk 0:01:07]}
22... Rfc8 {[%clk 0:01:48.4]} 23. Rfb1 {[%clk 0:01:05.5]} 23... b6 {[%clk
0:01:48]} 24. Rc1 {[%clk 0:00:56.7]} 24... f5 {[%clk 0:01:47.6]} 25. exf5 {[%clk
0:00:52.7]} 25... Qxf5 {[%clk 0:01:48.5]} 26. Rc2 {[%clk 0:00:31]} 26... Qe4+
{[%clk 0:01:47.8]} 27. Kg1 {[%clk 0:00:27.1]} 27... Rxd5 {[%clk 0:01:46.8]} 28.
Qg5 {[%clk 0:00:09]} 28... Rd1# {[%clk 0:01:32.3]} 0-1

[Event "*** Titled Tuesday Blitz"]
[Site "Chess.com"]
[Date "2020.05.26"]
[Round "1"]
[White "GmSergioBarrientos"]
[Black "AsselLesbekova"]
[Result "1-0"]
[WhiteElo "2597"]
[BlackElo "2256"]
[TimeControl "180+1"]
[EndTime "10:05:34 PDT"]
[Termination "GmSergioBarrientos won by checkmate"]

1. e4 {[%clk 0:03:00.3]} 1... c5 {[%clk 0:02:59.4]} 2. Nf3 {[%clk 0:02:59.4]}
2... Nc6 {[%clk 0:02:59.9]} 3. d4 {[%clk 0:02:58.5]} 3... cxd4 {[%clk
0:03:00.8]} 4. Nxd4 {[%clk 0:02:59.3]} 4... e5 {[%clk 0:03:01.3]} 5. Nb5 {[%clk
0:02:58.2]} 5... d6 {[%clk 0:03:01.9]} 6. N1c3 {[%clk 0:02:58.1]} 6... a6 {[%clk
0:03:00.3]} 7. Na3 {[%clk 0:02:58]} 7... b5 {[%clk 0:03:00.4]} 8. Nd5 {[%clk
0:02:57.7]} 8... Nce7 {[%clk 0:03:01]} 9. c4 {[%clk 0:02:53.1]} 9... Nxd5 {[%clk
0:03:01]} 10. exd5 {[%clk 0:02:52.2]} 10... bxc4 {[%clk 0:02:59.7]} 11. Nxc4
{[%clk 0:02:52.2]} 11... Nf6 {[%clk 0:02:59.7]} 12. Be3 {[%clk 0:02:51.7]} 12...
Rb8 {[%clk 0:02:58.7]} 13. Be2 {[%clk 0:02:45.8]} 13... Be7 {[%clk 0:02:58.3]}
14. O-O {[%clk 0:02:45.2]} 14... O-O {[%clk 0:02:58.2]} 15. a4 {[%clk
0:02:45.2]} 15... a5 {[%clk 0:02:52.3]} 16. Bd2 {[%clk 0:02:37.9]} 16... Ra8
{[%clk 0:02:41]} 17. b4 {[%clk 0:02:32.9]} 17... Nxd5 {[%clk 0:02:38.2]} 18.
Nxa5 {[%clk 0:02:27.3]} 18... Bd7 {[%clk 0:02:34.6]} 19. Bf3 {[%clk 0:02:25.7]}
19... Nb6 {[%clk 0:02:08]} 20. Bxa8 {[%clk 0:02:21.9]} 20... Qxa8 {[%clk
0:02:08.9]} 21. b5 {[%clk 0:02:19.1]} 21... d5 {[%clk 0:02:00.4]} 22. Re1 {[%clk
0:02:16]} 22... f5 {[%clk 0:01:49]} 23. Rxe5 {[%clk 0:02:05.9]} 23... Bf6 {[%clk
0:01:49]} 24. Re1 {[%clk 0:02:05.6]} 24... Bxa1 {[%clk 0:01:48.5]} 25. Qxa1
{[%clk 0:02:06.5]} 25... f4 {[%clk 0:01:41.4]} 26. Qd4 {[%clk 0:02:05.6]} 26...
Nc8 {[%clk 0:01:22.3]} 27. Bc3 {[%clk 0:01:55.9]} 27... Rf7 {[%clk 0:01:18.2]}
28. b6 {[%clk 0:01:55.5]} 28... Nd6 {[%clk 0:01:06.4]} 29. b7 {[%clk 0:01:46.9]}
29... Nxb7 {[%clk 0:01:06.5]} 30. Qxd5 {[%clk 0:01:46.6]} 30... Be8 {[%clk
0:00:42.1]} 31. Nxb7 {[%clk 0:01:42.1]} 31... Kh8 {[%clk 0:00:38.3]} 32. Nd6
{[%clk 0:01:38.4]} 32... Qxd5 {[%clk 0:00:33.5]} 33. Rxe8+ {[%clk 0:01:37.5]}
33... Rf8 {[%clk 0:00:33.7]} 34. Rxf8+ {[%clk 0:01:37.6]} 34... Qg8 {[%clk
0:00:34.1]} 35. Nf7# {[%clk 0:01:37.7]} 1-0

[Event "*** Titled Tuesday Blitz"]
[Site "Chess.com"]
[Date "2020.05.26"]
[Round "1"]
[White "doons21"]
[Black "Larina_Marija"]
[Result "1-0"]
[WhiteElo "2509"]
[BlackElo "2130"]
[TimeControl "180+1"]
[EndTime "10:05:37 PDT"]
[Termination "doons21 won by resignation"]

1. e4 {[%clk 0:03:00.9]} 1... d5 {[%clk 0:02:59.3]} 2. exd5 {[%clk 0:03:00.6]}
2... Qxd5 {[%clk 0:03:00.2]} 3. Nc3 {[%clk 0:02:59.4]} 3... Qa5 {[%clk 0:03:00]}
4. d4 {[%clk 0:02:57.3]} 4... Nf6 {[%clk 0:03:00]} 5. Bc4 {[%clk 0:02:56.8]}
5... Bf5 {[%clk 0:02:59.4]} 6. Bd2 {[%clk 0:02:56.8]} 6... c6 {[%clk 0:02:55.9]}
7. Nd5 {[%clk 0:02:53.3]} 7... Qd8 {[%clk 0:02:51.5]} 8. Nxf6+ {[%clk
0:02:53.2]} 8... exf6 {[%clk 0:02:43.8]} 9. Nf3 {[%clk 0:02:48.1]} 9... Bd6
{[%clk 0:02:29]} 10. O-O {[%clk 0:02:46.6]} 10... O-O {[%clk 0:02:28.2]} 11. c3
{[%clk 0:02:46]} 11... Bg4 {[%clk 0:02:25.5]} 12. h3 {[%clk 0:02:45.1]} 12...
Bh5 {[%clk 0:02:25.1]} 13. Re1 {[%clk 0:02:42.6]} 13... Nd7 {[%clk 0:02:22.1]}
14. g4 {[%clk 0:02:34.5]} 14... Bg6 {[%clk 0:02:21.3]} 15. Nh4 {[%clk
0:02:34.8]} 15... Kh8 {[%clk 0:02:16]} 16. Qf3 {[%clk 0:02:23.4]} 16... Nb6
{[%clk 0:02:12.9]} 17. Bb3 {[%clk 0:02:22.7]} 17... Qd7 {[%clk 0:02:00.8]} 18.
c4 {[%clk 0:02:11.6]} 18... Bc7 {[%clk 0:01:56.7]} 19. Bc3 {[%clk 0:02:03.9]}
19... Qd6 {[%clk 0:01:55]} 20. Qg2 {[%clk 0:01:53.1]} 20... Qd7 {[%clk
0:01:33.5]} 21. Nxg6+ {[%clk 0:01:46.2]} 21... hxg6 {[%clk 0:01:14.6]} 22. Re4
{[%clk 0:01:41.6]} 22... Rae8 {[%clk 0:01:13.5]} 23. Rae1 {[%clk 0:01:41.7]}
23... Rxe4 {[%clk 0:01:11.5]} 24. Qxe4 {[%clk 0:01:42.6]} 24... Qd6 {[%clk
0:01:07.2]} 25. Qg2 {[%clk 0:01:39]} 25... Qd7 {[%clk 0:01:04.4]} 26. Qe4 {[%clk
0:01:34.6]} 26... Qd6 {[%clk 0:01:03.9]} 27. Kf1 {[%clk 0:01:35]} 27... Qh2
{[%clk 0:01:00.7]} 28. Qg2 {[%clk 0:01:33.5]} 28... Qd6 {[%clk 0:00:57.7]} 29.
c5 {[%clk 0:01:32.4]} 29... Qf4 {[%clk 0:00:53.6]} 30. cxb6 {[%clk 0:01:31.9]}
30... Bxb6 {[%clk 0:00:53.1]} 31. Qg3 {[%clk 0:01:27.2]} 31... Qg5 {[%clk
0:00:50.4]} 32. h4 {[%clk 0:01:24.3]} 32... Qb5+ {[%clk 0:00:49.5]} 33. Kg2
{[%clk 0:01:24.3]} 33... a5 {[%clk 0:00:46.3]} 34. h5 {[%clk 0:01:18.9]} 34...
gxh5 {[%clk 0:00:44.4]} 35. gxh5 {[%clk 0:01:18.7]} 35... Qxh5 {[%clk 0:00:44]}
36. Rh1 {[%clk 0:01:18.1]} 1-0

[Event "*** Titled Tuesday Blitz"]
[Site "Chess.com"]
[Date "2020.05.26"]
[Round "1"]
[White "TheProfessor13"]
[Black "mortngabriel"]
[Result "1-0"]
[WhiteElo "2969"]
[BlackElo "2449"]
[TimeControl "180+1"]
[EndTime "10:05:38 PDT"]
[Termination "TheProfessor13 won on time"]

1. e4 {[%clk 0:03:00.9]} 1... c5 {[%clk 0:02:55.1]} 2. Nf3 {[%clk 0:03:00.8]}
2... d6 {[%clk 0:02:55.1]} 3. Nc3 {[%clk 0:03:01.7]} 3... Nf6 {[%clk 0:02:54.7]}
4. e5 {[%clk 0:02:59.3]} 4... dxe5 {[%clk 0:02:55.6]} 5. Nxe5 {[%clk 0:02:59.7]}
5... Nbd7 {[%clk 0:02:52.1]} 6. Nc4 {[%clk 0:02:57.2]} 6... e6 {[%clk
0:02:44.6]} 7. g3 {[%clk 0:02:57.1]} 7... b6 {[%clk 0:02:28.4]} 8. Bg2 {[%clk
0:02:56.3]} 8... Rb8 {[%clk 0:02:29]} 9. O-O {[%clk 0:02:56.1]} 9... Bb7 {[%clk
0:02:28.1]} 10. d3 {[%clk 0:02:56.3]} 10... Bxg2 {[%clk 0:02:26.3]} 11. Kxg2
{[%clk 0:02:57.2]} 11... b5 {[%clk 0:02:11.3]} 12. Ne3 {[%clk 0:02:42.5]} 12...
Be7 {[%clk 0:02:10.1]} 13. a4 {[%clk 0:02:39.4]} 13... a6 {[%clk 0:02:01.4]} 14.
axb5 {[%clk 0:02:34.1]} 14... axb5 {[%clk 0:02:02.3]} 15. f4 {[%clk 0:02:34.9]}
15... O-O {[%clk 0:02:00.4]} 16. f5 {[%clk 0:02:34.1]} 16... b4 {[%clk
0:01:41.2]} 17. Ne4 {[%clk 0:02:27.2]} 17... Qb6 {[%clk 0:01:26.8]} 18. fxe6
{[%clk 0:02:23.4]} 18... Qxe6 {[%clk 0:01:27.7]} 19. Qf3 {[%clk 0:02:19]} 19...
Nxe4 {[%clk 0:01:26.3]} 20. dxe4 {[%clk 0:02:15.6]} 20... Nf6 {[%clk 0:01:12.9]}
21. Nf5 {[%clk 0:02:10.3]} 21... Rfe8 {[%clk 0:01:12.7]} 22. Bg5 {[%clk
0:02:04.7]} 22... Bd8 {[%clk 0:00:26.9]} 23. Rae1 {[%clk 0:01:49.8]} 23... Nxe4
{[%clk 0:00:21]} 24. Ne7+ {[%clk 0:01:39.1]} 24... Bxe7 {[%clk 0:00:13.4]} 25.
Rxe4 {[%clk 0:01:38.8]} 25... Qd5 {[%clk 0:00:06]} 26. Rxe7 {[%clk 0:01:34.2]}
1-0

[Event "*** Titled Tuesday Blitz"]
[Site "Chess.com"]
[Date "2020.05.26"]
[Round "1"]
[White "dpopadic"]
[Black "VMikhalevski"]
[Result "0-1"]
[WhiteElo "2387"]
[BlackElo "2757"]
[TimeControl "180+1"]
[EndTime "10:05:42 PDT"]
[Termination "VMikhalevski won by resignation"]

1. e4 {[%clk 0:03:00.9]} 1... e5 {[%clk 0:02:59.4]} 2. Nf3 {[%clk 0:03:00.3]}
2... Nc6 {[%clk 0:03:00]} 3. Bb5 {[%clk 0:03:00.1]} 3... g6 {[%clk 0:02:59.7]}
4. Nc3 {[%clk 0:02:50]} 4... Bg7 {[%clk 0:02:59.1]} 5. O-O {[%clk 0:02:45.9]}
5... Nge7 {[%clk 0:02:54.9]} 6. Nd5 {[%clk 0:02:40]} 6... O-O {[%clk 0:02:52.8]}
7. Nxe7+ {[%clk 0:02:32.5]} 7... Qxe7 {[%clk 0:02:50.5]} 8. d3 {[%clk
0:02:31.1]} 8... h6 {[%clk 0:02:42.6]} 9. h3 {[%clk 0:02:30.9]} 9... Kh7 {[%clk
0:02:42.2]} 10. c3 {[%clk 0:02:25.8]} 10... d6 {[%clk 0:02:41.9]} 11. Qe2 {[%clk
0:02:20.4]} 11... f5 {[%clk 0:02:39.6]} 12. Bd2 {[%clk 0:02:15.9]} 12... Bd7
{[%clk 0:02:28.9]} 13. Rfe1 {[%clk 0:02:09.2]} 13... Rae8 {[%clk 0:02:25.3]} 14.
Rad1 {[%clk 0:02:05]} 14... f4 {[%clk 0:02:17.8]} 15. Bc1 {[%clk 0:01:59.6]}
15... g5 {[%clk 0:02:16.4]} 16. Nh2 {[%clk 0:01:58.4]} 16... Qf7 {[%clk
0:02:13.6]} 17. f3 {[%clk 0:01:43.3]} 17... h5 {[%clk 0:02:11.7]} 18. Rf1 {[%clk
0:01:41.4]} 18... Qxa2 {[%clk 0:01:56.3]} 19. Bc4 {[%clk 0:01:34.2]} 19... Qa5
{[%clk 0:01:55.6]} 20. Bd2 {[%clk 0:01:31.3]} 20... Qb6+ {[%clk 0:01:54.3]} 21.
Kh1 {[%clk 0:01:29.6]} 21... Ne7 {[%clk 0:01:51]} 22. Bc1 {[%clk 0:01:25.2]}
22... c6 {[%clk 0:01:50]} 23. Ba2 {[%clk 0:01:18.9]} 23... d5 {[%clk 0:01:46.4]}
24. Qc2 {[%clk 0:01:04.1]} 24... d4 {[%clk 0:01:44.4]} 25. cxd4 {[%clk
0:01:00.5]} 25... exd4 {[%clk 0:01:38.6]} 26. Bd2 {[%clk 0:00:53.9]} 26... Ng6
{[%clk 0:01:35.5]} 27. Bc4 {[%clk 0:00:47.8]} 27... Ne5 {[%clk 0:01:34.2]} 28.
Ra1 {[%clk 0:00:45.4]} 28... c5 {[%clk 0:01:30.8]} 29. Qb3 {[%clk 0:00:44.5]}
29... Qxb3 {[%clk 0:01:29.7]} 30. Bxb3 {[%clk 0:00:44.3]} 30... a6 {[%clk
0:01:28.1]} 31. Bc2 {[%clk 0:00:42.9]} 31... Bb5 {[%clk 0:01:26.4]} 32. b4
{[%clk 0:00:40.9]} 32... c4 {[%clk 0:01:19.7]} 33. dxc4 {[%clk 0:00:39]} 33...
Nxc4 {[%clk 0:01:19.3]} 34. Bc1 {[%clk 0:00:39.1]} 34... Ne3 {[%clk 0:01:18.8]}
35. Rf2 {[%clk 0:00:39.3]} 35... d3 {[%clk 0:01:18]} 36. Bb3 {[%clk 0:00:39]}
36... Bxa1 {[%clk 0:01:16.8]} 0-1

[Event "*** Titled Tuesday Blitz"]
[Site "Chess.com"]
[Date "2020.05.26"]
[Round "1"]
[White "lucliasco"]
[Black "DishonorOnYourCow"]
[Result "1-0"]
[WhiteElo "2682"]
[BlackElo "2317"]
[TimeControl "180+1"]
[EndTime "10:05:43 PDT"]
[Termination "lucliasco won by resignation"]

1. d4 {[%clk 0:02:52.3]} 1... Nf6 {[%clk 0:02:59.2]} 2. Nf3 {[%clk 0:02:51.6]}
2... g6 {[%clk 0:02:59.2]} 3. g3 {[%clk 0:02:50.7]} 3... d5 {[%clk 0:02:56.1]}
4. Bg2 {[%clk 0:02:51.6]} 4... Bg7 {[%clk 0:02:55.9]} 5. O-O {[%clk 0:02:52.5]}
5... O-O {[%clk 0:02:55.9]} 6. c4 {[%clk 0:02:52.6]} 6... dxc4 {[%clk
0:02:55.8]} 7. Na3 {[%clk 0:02:52.1]} 7... c3 {[%clk 0:02:52]} 8. bxc3 {[%clk
0:02:46.9]} 8... c5 {[%clk 0:02:50.7]} 9. e3 {[%clk 0:02:43.7]} 9... Nc6 {[%clk
0:02:50.1]} 10. Qe2 {[%clk 0:02:39.4]} 10... Bf5 {[%clk 0:02:38.9]} 11. Rd1
{[%clk 0:02:36.9]} 11... Qb6 {[%clk 0:02:37]} 12. Nh4 {[%clk 0:02:28.5]} 12...
Bg4 {[%clk 0:02:30.1]} 13. Bf3 {[%clk 0:02:28.9]} 13... Bxf3 {[%clk 0:02:27.6]}
14. Nxf3 {[%clk 0:02:29.5]} 14... Rfd8 {[%clk 0:02:19]} 15. Rb1 {[%clk
0:02:26.5]} 15... Qc7 {[%clk 0:01:51.2]} 16. Nb5 {[%clk 0:02:23]} 16... Qa5
{[%clk 0:01:50.4]} 17. c4 {[%clk 0:02:20.3]} 17... Ne4 {[%clk 0:01:43.3]} 18. d5
{[%clk 0:02:09.7]} 18... a6 {[%clk 0:00:59.7]} 19. dxc6 {[%clk 0:01:58.3]} 19...
Rxd1+ {[%clk 0:00:58.7]} 20. Qxd1 {[%clk 0:01:59.2]} 20... axb5 {[%clk
0:00:58.7]} 21. cxb7 {[%clk 0:01:59]} 21... Rd8 {[%clk 0:00:42]} 22. Qc2 {[%clk
0:01:55.5]} 22... Nc3 {[%clk 0:00:40.7]} 23. Bd2 {[%clk 0:01:51.7]} 23... b4
{[%clk 0:00:34.5]} 24. Bxc3 {[%clk 0:01:51.8]} 24... Bxc3 {[%clk 0:00:33.7]} 25.
Rd1 {[%clk 0:01:49.7]} 25... Rb8 {[%clk 0:00:27.7]} 26. Qe4 {[%clk 0:01:43.5]}
26... Qc7 {[%clk 0:00:25.5]} 27. Ng5 {[%clk 0:01:43.1]} 27... Qxb7 {[%clk
0:00:19.9]} 28. Rd8+ {[%clk 0:01:36.8]} 28... Kg7 {[%clk 0:00:19.9]} 29. Rxb8
{[%clk 0:01:37.5]} 29... Qxb8 {[%clk 0:00:19.8]} 30. Qxe7 {[%clk 0:01:38.4]}
30... Qe5 {[%clk 0:00:18.7]} 31. Qxf7+ {[%clk 0:01:35.4]} 31... Kh6 {[%clk
0:00:17.8]} 32. h4 {[%clk 0:01:31.9]} 32... Qg7 {[%clk 0:00:16.1]} 33. Qf4
{[%clk 0:01:32]} 33... Be5 {[%clk 0:00:15.1]} 34. Nf7+ {[%clk 0:01:28.1]} 1-0